bitfinex/quotes_ETHUSD_20210401
["timestamp","ask_amount","ask_price","bid_price","bid_amount"]
[1617291334001,5.72116,1943.8,1943.7,6.39]
[1617291334202,13.87432,1943.9,1943.7,6.39]
[1617291334203,1.0,1943.9,1943.7,6.39]
[1617291334505,8.72135,1943.9,1943.4,0.28]
[1617291334704,7.72135,1943.9,1943.5,2.7008302]
[1617291334903,7.72135,1943.9,1943.4,0.68]
[1617291335303,7.72135,1943.9,1943.4,3.3773348]
[1617291335534,7.72135,1943.9,1943.5,0.41]
[1617291335937,0.74686348,1944.0,1943.7,0.38]
[1617291336134,0.74686348,1944.0,1943.9,0.41]
[1617291336336,0.37377154,1944.1,1943.8,0.4]
[1617291336535,0.74686348,1944.0,1943.6,5.29]
[1617291336737,0.12063502,1944.1,1943.7,9.38797156]
[1617291337035,0.12063502,1944.1,1943.7,7.08]
[1617291337236,0.12063502,1944.1,1943.7,10.08]
[1617291337535,0.18479904,1944.0,1943.7,10.08]
[1617291338657,0.18479904,1944.0,1943.7,3.38]
[1617291338854,8.29526904,1944.0,1943.6,0.28]
[1617291339155,8.29526904,1944.0,1943.4,0.4]
[1617291339354,0.4,1943.9,1943.4,0.28]
[1617291339757,1.37123406,1944.1,1943.6,0.39]
[1617291339955,2.6634405,1944.0,1943.6,0.39]
[1617291340157,3.8690405,1944.0,1943.2,0.09406894]
[1617291340357,3.8634405,1943.7,1943.2,0.09406894]
[1617291340708,5.01,1943.4,1943.2,0.09406894]
[1617291340906,20.7534405,1943.3,1943.2,0.09406894]
[1617291341210,36.7539302,1943.3,1943.2,0.09406894]
[1617291341403,37.72400045,1943.3,1943.2,0.09406894]
[1617291341810,36.33400045,1943.3,1943.2,0.09406894]
[1617291342906,17.6639302,1943.3,1943.2,0.09406894]
[1617291343107,2.9428405,1943.3,1942.2,26.5601]
[1617291343305,2.9428405,1943.3,1942.8,0.4]
[1617291343306,10.29913,1943.1,1942.8,0.4]
[1617291344309,10.29913,1943.1,1942.4,5.01]
[1617291344310,7.72319,1943.2,1942.7,0.68]
[1617291344511,19.80260453,1943.7,1943.0,0.41]
[1617291344512,5.15950858,1943.7,1943.0,0.41]
[1617291344710,0.15950858,1943.7,1943.0,0.41]
[1617291345021,0.15950858,1943.7,1943.5,0.38]
[1617291345211,0.31049748,1943.8,1943.5,0.38]
[1617291345409,0.31049748,1943.8,1943.5,8.5401]
[1617291346828,0.09249748,1943.8,1943.5,8.5401]
[1617291347130,0.09249748,1943.8,1943.7,11.75]
[1617291347627,0.09249748,1943.8,1943.7,11.35]
[1617291348329,0.09249748,1943.8,1943.5,0.39]
[1617291348553,0.09249748,1943.8,1943.3,0.4]
[1617291348554,7.81403748,1943.8,1943.3,0.4]
[1617291348861,7.81403748,1943.8,1943.4,2.65683916]
[1617291349053,7.81403748,1943.8,1943.7,6.71]
[1617291349255,0.09249748,1943.8,1943.7,6.71]
[1617291349756,1.09389748,1944.1,1943.8,8.45]
[1617291349956,1.09389748,1944.1,1943.3,5.10406894]
[1617291350156,0.18479904,1944.0,1943.5,0.28]
[1617291350356,0.18479904,1944.0,1943.5,0.68]
[1617291350858,0.18479904,1944.0,1943.7,0.41]
[1617291351280,1.26389904,1944.0,1943.7,0.41]
[1617291351485,0.18479904,1944.0,1943.7,0.41]
[1617291351680,0.18479904,1944.0,1943.6,2.6394432]
[1617291352081,0.18479904,1944.0,1943.5,0.28]
[1617291352282,0.18479904,1944.0,1943.5,5.29]
[1617291352683,0.18479904,1944.0,1943.5,0.28]
[1617291353804,7.90564904,1944.0,1943.5,0.28]
[1617291354007,7.85564904,1944.0,1943.6,0.4]
[1617291354224,7.72085,1944.0,1943.6,0.4]
[1617291354424,9.11145,1944.0,1943.6,0.4]
[1617291354834,7.7212,1943.9,1943.4,3.0494432]
[1617291355028,7.7212,1943.9,1943.4,5.7294432]
[1617291355231,7.7212,1943.9,1943.4,3.0494432]
[1617291355527,8.1112,1943.9,1943.3,0.69]
[1617291355926,8.1112,1943.9,1943.3,0.41]
[1617291356128,0.38,1943.6,1943.2,11.5922]
[1617291356457,0.38,1943.6,1943.0,0.39]
[1617291356664,0.52,1943.6,1943.0,0.39]
[1617291357355,7.72351,1943.3,1942.8,14.2864]
[1617291357556,7.72351,1943.3,1942.8,14.6764]
[1617291357756,7.67351,1943.3,1942.8,0.67]
[1617291358854,7.67351,1943.3,1942.9,0.39]
[1617291359358,10.29769,1943.5,1942.9,5.4]
[1617291359556,0.53,1943.6,1943.0,0.41]
[1617291359857,7.72282,1943.4,1943.1,0.41]
[1617291360054,7.72282,1943.4,1943.1,5.42]
[1617291361457,7.72282,1943.4,1943.1,8.0594432]
[1617291361681,7.72282,1943.4,1943.0,0.294]
[1617291361882,2.7,1943.3,1943.0,2.6394432]
[1617291362076,2.7,1943.3,1942.6,11.9551]
[1617291362077,3.09,1943.3,1942.8,5.01]
[1617291362277,3.09,1943.3,1942.9,5.01]
[1617291362479,3.04,1943.3,1942.9,7.6494432]
[1617291362676,2.65,1943.3,1943.1,5.01]
[1617291362979,2.65,1943.3,1942.8,5.42]
[1617291363180,4.24202,1943.4,1942.9,5.01]
[1617291363390,4.24202,1943.4,1943.0,5.01]
[1617291363581,7.72368,1943.2,1942.9,4.96]
[1617291363778,7.72368,1943.2,1942.8,3.3294432]
[1617291363977,7.72368,1943.2,1943.0,0.41]
[1617291364415,7.72368,1943.2,1942.8,0.69]
[1617291364606,8.11277,1943.4,1942.8,0.69]
[1617291364808,7.72277,1943.4,1942.8,0.69]
[1617291365209,7.72277,1943.4,1942.9,5.01]
[1617291365408,7.72277,1943.4,1943.0,0.38]
[1617291365608,7.72277,1943.4,1943.1,2.6394432]
[1617291365908,1.013,1943.7,1943.3,5.01]
[1617291365909,7.722,1943.6,1943.3,5.01]
[1617291366115,7.722,1943.6,1943.3,5.29]
[1617291366408,7.722,1943.6,1943.3,0.28]
[1617291367833,17.23,1943.4,1942.7,0.09406894]
[1617291368038,17.23,1943.4,1942.5,0.39]
[1617291368039,0.4,1943.0,1942.5,0.39]
[1617291368240,0.4,1943.0,1942.3,11.06916894]
[1617291368241,7.72535,1942.8,1942.3,11.06916894]
[1617291368545,7.72535,1942.8,1942.2,0.294]
[1617291369032,7.72535,1942.8,1942.3,0.39]
[1617291369650,7.72535,1942.8,1942.1,1.0]
[1617291369857,0.4,1942.6,1942.1,1.0]
[1617291370551,0.14,1942.8,1942.1,1.38]
[1617291370752,0.55,1942.8,1942.1,1.38]
[1617291370955,3.43,1942.7,1942.1,1.38]
[1617291371157,7.7265,1942.4,1942.1,1.38]
[1617291372910,7.7265,1942.4,1942.1,1.0]
[1617291374909,9.23,1942.2,1942.1,1.0]
[1617291375216,19.03,1942.2,1942.1,1.0]
[1617291375512,20.23,1942.2,1942.1,1.0]
[1617291375810,20.23,1942.2,1942.1,0.25567]
[1617291376917,13.06370366,1942.2,1942.1,0.25567]
[1617291377118,0.39,1941.6,1941.1,1.0]
[1617291377332,3.04370366,1941.5,1941.1,1.0]
[1617291377539,0.39,1941.3,1941.1,1.0]
[1617291377738,28.23370366,1941.2,1941.1,1.0]
[1617291377939,41.14090366,1941.2,1941.1,1.0]
[1617291378139,51.95024336,1941.2,1941.1,1.0]
[1617291378338,52.91924336,1941.2,1941.1,1.0]
[1617291378936,27.31924336,1941.2,1941.1,1.0]
[1617291379138,20.62204336,1941.2,1941.1,1.0]
[1617291379440,11.56708366,1941.2,1941.1,1.0]
[1617291380256,10.36708366,1941.2,1941.1,1.0]
[1617291380557,7.73338,1941.2,1941.1,1.0]
[1617291381957,2.75183723,1941.3,1941.1,1.0]
[1617291383785,2.35183723,1941.3,1941.1,1.0]
[1617291384186,10.08400723,1941.3,1941.1,1.0]
[1617291386409,7.73217,1941.3,1941.1,1.0]
[1617291387608,11.73217,1941.3,1941.1,1.0]
[1617291388034,2.72,1941.2,1941.1,1.0]
[1617291388834,8.67,1941.2,1941.1,1.0]
[1617291389035,9.07,1941.2,1941.1,1.0]
[1617291389235,3.12,1941.2,1941.1,1.0]
[1617291389634,2.72,1941.2,1941.1,1.0]
[1617291392264,7.73217,1941.3,1941.1,1.0]
[1617291392665,25.51050417,1941.8,1941.1,1.0]
[1617291392666,23.44857567,1941.8,1941.1,1.0]
[1617291392864,3.82325552,1941.7,1941.1,1.0]
[1617291393067,3.76,1941.6,1941.2,0.4]
[1617291393285,2.62555552,1941.5,1941.2,0.4]
[1617291393485,7.73124,1941.5,1941.2,0.4]
[1617291395092,7.73124,1941.5,1941.1,1.0]
[1617291395287,7.73124,1941.5,1941.2,0.39]
[1617291395488,7.73124,1941.5,1941.1,1.0]
[1617291395689,7.73124,1941.5,1941.1,1.39]
[1617291395914,6.73124,1941.5,1941.3,0.4]
[1617291396218,6.73124,1941.5,1941.1,1.0]
[1617291397315,2.62243554,1941.4,1941.1,1.0]
[1617291397829,7.68909554,1941.4,1941.1,1.0]
[1617291398634,11.26,1941.2,1941.1,1.0]
[1617291398835,12.86,1941.2,1941.1,1.0]
[1617291399035,8.0952597,1941.2,1941.1,1.0]
[1617291399261,4.22243554,1941.2,1941.1,1.0]
[1617291399665,14.52243554,1941.2,1941.1,0.09028119]
[1617291399870,21.01769524,1941.2,1941.1,0.09028119]
[1617291400463,4.22243554,1941.2,1941.1,0.09028119]
[1617291400962,2.62243554,1941.2,1941.1,0.09028119]
[1617291401766,18.2683497,1941.3,1941.1,0.09028119]
[1617291402071,4.0,1941.2,1941.1,0.09028119]
[1617291402965,4.0,1941.2,1940.4,12.09181352]
[1617291403165,4.0,1941.2,1940.5,0.343]
[1617291403166,7.73318,1940.9,1940.5,0.343]
[1617291403982,10.31091,1941.1,1940.6,0.38]
[1617291404185,0.14,1941.2,1940.7,0.39]
[1617291404483,24.5392897,1941.4,1940.8,0.38]
[1617291404683,3.98,1941.3,1940.7,0.39]
[1617291404886,0.4,1941.2,1940.6,0.28]
[1617291405184,7.73302,1940.9,1940.6,0.66]
[1617291405386,2.7,1940.8,1940.6,0.66]
[1617291405789,1.7,1940.8,1940.6,0.28]
[1617291405986,1.7,1940.8,1940.6,0.38]
[1617291406412,7.73386,1940.7,1940.6,0.38]
[1617291406812,7.73386,1940.7,1940.6,5.33]
[1617291407315,7.73386,1940.7,1940.4,5.01]
[1617291407513,7.73386,1940.7,1940.4,0.39]
[1617291407813,7.73386,1940.7,1940.5,0.4]
[1617291408815,7.7329,1940.9,1940.7,0.39]
[1617291409034,7.7329,1940.9,1940.8,5.75]
[1617291409434,10.31149,1941.0,1940.8,5.75]
[1617291409737,0.109051,1941.2,1940.8,5.75]
[1617291409936,0.109051,1941.2,1940.8,5.35]
[1617291410334,0.109051,1941.2,1940.8,5.75]
[1617291410735,6.7322,1941.0,1940.8,0.4]
[1617291410937,6.7322,1941.0,1940.9,0.4]
[1617291411136,6.7322,1941.0,1940.3,5.01]
[1617291411336,6.8722,1941.0,1940.5,0.38]
[1617291413262,0.4,1940.8,1940.4,5.01]
[1617291413463,0.14,1941.0,1940.4,5.4]
[1617291413663,0.14,1941.0,1940.4,5.68]
[1617291413863,0.14,1941.0,1940.5,5.01]
[1617291414064,21.3306907,1941.2,1940.5,5.01]
[1617291414284,7.73305,1940.8,1940.4,5.4]
[1617291414584,7.73305,1940.8,1940.5,5.4]
[1617291415795,6.73305,1940.8,1940.5,5.4]
[1617291415989,6.73305,1940.8,1940.6,0.41]
[1617291417944,6.73305,1940.8,1940.5,5.01]
[1617291418147,6.73305,1940.8,1940.5,5.4]
[1617291419351,6.73305,1940.8,1940.5,5.01]
[1617291419545,6.73305,1940.8,1940.4,5.29]
[1617291420845,5.73305,1940.8,1940.4,5.68]
[1617291421547,5.73305,1940.8,1940.4,0.67]
[1617291421951,5.73305,1940.8,1940.6,0.4]
[1617291422157,5.73305,1940.8,1940.4,0.28]
[1617291422357,5.73305,1940.8,1940.5,0.4]
[1617291423457,5.73305,1940.8,1940.4,5.29]
[1617291423859,5.73305,1940.8,1940.5,5.01]
[1617291424359,5.73305,1940.8,1940.4,5.7]
[1617291424786,5.73305,1940.8,1940.4,0.69]
[1617291425789,4.73305,1940.8,1940.4,0.69]
[1617291426087,4.73305,1940.8,1940.5,0.39]
[1617291426290,4.73305,1940.8,1940.1,1.4]
[1617291426291,2.48690861,1940.7,1940.1,1.4]
[1617291426497,2.62690861,1940.7,1940.1,1.0]
[1617291426690,4.2,1940.6,1940.1,1.0]
[1617291426891,2.588935,1940.5,1940.1,1.0]
[1617291427090,8.09,1940.2,1940.1,1.0]
[1617291427310,19.860535,1940.2,1940.1,1.0]
[1617291427611,27.597875,1940.2,1940.1,1.0]
[1617291428210,28.797875,1940.2,1940.1,1.0]
[1617291429011,21.097875,1940.2,1940.1,1.0]
[1617291429311,20.4360672,1940.2,1940.1,1.0]
[1617291429929,19.897875,1940.2,1940.1,1.0]
[1617291430939,18.897875,1940.2,1940.1,1.0]
[1617291433983,16.91894,1940.2,1940.1,1.0]
[1617291435787,15.91894,1940.2,1940.1,1.0]
[1617291436087,16.31894,1940.2,1940.1,1.0]
[1617291436687,15.91894,1940.2,1940.1,1.0]
[1617291438014,17.11894,1940.2,1940.1,1.0]
[1617291438213,17.52894,1940.2,1940.1,1.0]
[1617291438409,22.53894,1940.2,1940.1,1.0]
[1617291438810,17.11894,1940.2,1940.1,1.0]
[1617291439412,15.91894,1940.2,1940.1,1.0]
[1617291440839,14.91894,1940.2,1940.1,1.0]
[1617291441839,12.30740985,1940.3,1940.1,1.0]
[1617291441840,0.9835,1940.3,1940.1,1.0]
[1617291442041,0.53813679,1940.6,1940.1,1.41]
[1617291442241,0.53813679,1940.6,1940.4,0.39]
[1617291442444,21.93766987,1940.7,1940.4,0.39]
[1617291443565,8.65,1940.4,1940.3,0.28]
[1617291443770,8.65,1940.4,1939.8,5.06308481]
[1617291443771,9.8,1940.3,1939.8,5.06308481]
[1617291443966,9.8,1940.3,1939.8,0.05308481]
[1617291443967,3.0,1940.2,1939.8,0.05308481]
[1617291444172,0.4,1940.0,1939.8,0.05308481]
[1617291444379,0.4,1940.0,1939.1,1.0]
[1617291444573,4.26945,1939.6,1939.2,0.28]
[1617291444769,4.26945,1939.6,1939.1,1.0]
[1617291444770,2.7,1939.3,1939.1,1.41]
[1617291445169,10.31853,1939.5,1939.1,1.41]
[1617291446309,10.31836,1939.3,1939.2,0.39]
[1617291446690,10.31853,1939.5,1939.2,0.39]
[1617291446891,10.31853,1939.5,1939.4,8.31]
[1617291447390,10.31853,1939.5,1939.4,0.41]
[1617291447589,10.31853,1939.5,1939.1,1.38]
[1617291447791,10.31853,1939.5,1939.1,1.66]
[1617291447792,2.7,1939.4,1939.1,1.66]
[1617291448191,2.7,1939.4,1939.1,6.67]
[1617291448411,7.73843,1939.3,1939.2,0.4]
[1617291448610,7.73843,1939.3,1939.2,7.45716971]
[1617291448815,7.73843,1939.3,1939.2,15.45716971]
[1617291449011,7.73843,1939.3,1939.2,5.01]
[1617291449321,7.73843,1939.3,1939.1,1.0]
[1617291450513,7.73843,1939.3,1939.0,5.01]
[1617291450940,7.73843,1939.3,1939.0,7.56295544]
[1617291451446,3.09,1939.2,1938.5,13.9934]
[1617291451647,0.39,1939.0,1937.9,0.39]
[1617291451845,0.39,1939.0,1938.6,2.57233934]
[1617291452043,0.39,1939.0,1938.4,2.57233934]
[1617291452243,7.74084,1938.7,1938.4,2.57233934]
[1617291452443,7.74084,1938.7,1938.3,0.28]
[1617291452643,7.74084,1938.7,1938.4,2.57233934]
[1617291452843,7.74084,1938.7,1938.0,2.57233934]
[1617291453143,7.74084,1938.7,1938.4,2.57233934]
[1617291453967,7.74084,1938.7,1938.6,5.01]
[1617291454566,7.64084,1938.7,1938.6,5.01]
[1617291455968,7.64084,1938.7,1938.2,0.38]
[1617291456196,2.68,1938.6,1938.2,0.38]
[1617291456398,2.68,1938.6,1938.2,2.95233934]
[1617291456599,7.7413,1938.5,1938.2,2.95233934]
[1617291456796,3.0,1938.4,1938.2,2.57233934]
[1617291457097,3.0,1938.4,1938.2,3.60752128]
[1617291457596,3.0,1938.4,1938.2,1.03518194]
[1617291458197,7.74181,1938.3,1938.2,1.03518194]
[1617291459519,8.14181,1938.3,1938.2,1.03518194]
[1617291459837,8.14181,1938.3,1937.3,12.864057]
[1617291459838,0.39,1938.0,1937.3,12.864057]
[1617291460016,0.39,1938.0,1937.5,0.28]
[1617291460315,1.966,1938.1,1937.5,0.28]
[1617291460714,1.966,1938.1,1937.5,0.67]
[1617291460715,7.7447,1937.8,1937.5,0.67]
[1617291461014,7.7447,1937.8,1937.5,5.63]
[1617291461214,7.7447,1937.8,1937.5,5.01]
[1617291461463,7.7447,1937.8,1937.4,0.38]
[1617291461668,7.7447,1937.8,1937.3,12.864057]
[1617291461669,3.11,1937.7,1937.3,12.864057]
[1617291462166,0.38,1937.4,1937.3,12.864057]
[1617291462364,1.1079,1937.5,1937.3,12.864057]
[1617291463267,8.85429,1937.5,1937.3,12.864057]
[1617291463868,2.92,1937.4,1937.3,12.764057]
[1617291464373,8.85429,1937.5,1937.3,12.764057]
[1617291464569,7.74639,1937.5,1937.3,12.764057]
[1617291466573,7.74639,1937.5,1937.3,13.154057]
[1617291466996,7.74639,1937.5,1937.4,5.01]
[1617291467192,7.74639,1937.5,1937.4,2.72]
[1617291467395,7.74639,1937.5,1937.3,12.764057]
[1617291469195,7.74639,1937.5,1937.3,12.714057]
[1617291469418,7.74639,1937.5,1937.4,10.81]
[1617291469621,7.74455,1937.8,1937.5,5.01]
[1617291469825,0.09406894,1938.4,1937.5,6.61]
[1617291470021,13.31833,1938.5,1937.6,8.78233934]
[1617291470226,13.31833,1938.5,1937.7,5.01]
[1617291470227,0.50406894,1938.5,1937.7,5.01]
[1617291470418,0.09406894,1938.5,1937.9,2.57233934]
[1617291470619,13.7884,1938.6,1937.9,2.57233934]
[1617291470926,0.14,1938.7,1938.2,2.98233934]
[1617291471136,0.14,1938.7,1938.1,5.01]
[1617291471137,7.74157,1938.6,1938.1,5.01]
[1617291471321,6.85195961,1938.6,1938.3,5.01]
[1617291471621,6.85195961,1938.6,1938.3,0.39]
[1617291471819,6.85195961,1938.6,1938.2,0.4]
[1617291472043,7.24195961,1938.6,1938.1,5.01]
[1617291472250,7.24195961,1938.6,1938.0,0.38]
[1617291472644,7.24195961,1938.6,1938.1,0.4]
[1617291473045,6.85195961,1938.6,1938.1,0.4]
[1617291473344,6.85195961,1938.6,1938.3,0.39]
[1617291474144,6.85195961,1938.6,1938.1,5.01]
[1617291474345,6.85195961,1938.6,1938.1,0.39]
[1617291474783,6.85195961,1938.6,1938.2,5.01]
[1617291475181,6.85195961,1938.6,1938.2,7.56326066]
[1617291475382,6.85195961,1938.6,1938.4,0.4]
[1617291475581,0.09406894,1938.9,1938.5,11.29326066]
[1617291475784,42.48762,1939.1,1938.5,8.74]
[1617291475785,9.58932864,1939.0,1938.5,8.74]
[1617291475981,3.09406894,1939.0,1938.5,8.74]
[1617291476185,0.09406894,1939.0,1938.5,8.74]
[1617291476383,13.29532,1939.1,1938.5,8.74]
[1617291476587,0.09406894,1939.0,1938.5,8.74]
[1617291477199,7.74048,1938.9,1938.5,8.74]
[1617291478498,7.74048,1938.9,1938.5,0.39]
[1617291480518,0.39,1938.6,1938.3,5.01]
[1617291480718,0.39,1938.6,1937.4,15.5059347]
[1617291480923,0.39,1938.6,1937.4,10.4759347]
[1617291480924,0.14,1938.4,1937.4,10.4759347]
[1617291481323,0.14,1938.4,1937.4,0.1542347]
[1617291481516,7.74338,1938.0,1937.3,12.994057]
[1617291481720,7.74338,1938.0,1937.6,0.4]
[1617291481923,7.74338,1938.0,1937.3,17.254057]
[1617291482118,7.74338,1938.0,1937.3,12.994057]
[1617291482447,7.74338,1938.0,1937.5,5.01]
[1617291482746,7.74338,1938.0,1937.6,0.39]
[1617291483345,2.78,1937.9,1937.6,0.39]
[1617291483549,1.51546894,1938.5,1937.9,5.01]
[1617291483747,1.51546894,1938.5,1938.1,0.41]
[1617291483748,0.09406894,1938.5,1938.1,0.41]
[1617291483946,13.8113,1938.6,1938.2,0.41]
[1617291484151,0.09406894,1938.6,1938.2,0.41]
[1617291484345,7.74198,1938.4,1938.2,0.41]
[1617291485273,0.09406894,1938.7,1938.2,0.41]
[1617291486283,7.74118,1938.6,1938.2,0.41]
[1617291486476,0.09406894,1939.1,1938.3,0.4]
[1617291486674,0.4,1938.9,1938.3,0.4]
[1617291486873,0.4,1938.7,1938.1,5.41]
[1617291487174,8.14237,1938.4,1938.0,5.01]
[1617291487375,8.14237,1938.4,1937.8,5.01]
[1617291487577,8.14237,1938.4,1937.8,5.41]
[1617291487800,7.74237,1938.4,1937.8,2.97872954]
[1617291488001,0.09406894,1938.5,1938.2,0.4]
[1617291488201,10.32222,1938.8,1938.3,2.96872954]
[1617291488202,0.09406894,1938.7,1938.3,2.96872954]
[1617291488402,10.32222,1938.8,1938.5,5.41]
[1617291488616,10.32222,1938.8,1938.5,5.01]
[1617291488801,10.32222,1938.8,1938.3,0.39]
[1617291489001,10.32222,1938.8,1938.5,5.01]
[1617291489202,10.32222,1938.8,1938.6,5.01]
[1617291489436,0.39,1938.9,1938.6,5.01]
[1617291489639,0.39,1938.9,1938.3,0.39]
[1617291490442,8.22457894,1938.9,1938.3,0.39]
[1617291491036,8.13051,1938.9,1938.4,5.01]
[1617291491237,0.09406894,1938.8,1938.4,5.01]
[1617291491537,7.74105,1938.7,1938.4,5.01]
[1617291492445,8.14105,1938.7,1938.4,5.01]
[1617291492641,8.14105,1938.7,1938.0,13.9946]
[1617291492944,0.4,1938.7,1938.1,2.96872954]
[1617291493144,0.23406894,1938.9,1938.1,2.96872954]
[1617291493444,0.39,1938.7,1938.1,2.57872954]
[1617291493644,0.23406894,1938.9,1938.1,2.57872954]
[1617291494047,0.23406894,1938.9,1938.3,5.01]
[1617291494251,7.74153,1938.6,1938.3,5.4]
[1617291494647,7.74153,1938.6,1938.3,5.01]
[1617291497972,7.74153,1938.6,1938.3,5.4]
[1617291498195,10.322,1938.8,1938.3,5.4]
[1617291498397,0.4,1939.0,1938.3,5.4]
[1617291498597,0.09406894,1938.9,1938.3,7.97872954]
[1617291498799,19.3999697,1939.2,1938.6,0.41]
[1617291498800,0.09406894,1939.1,1938.6,0.41]
[1617291498998,6.4952597,1939.5,1938.7,2.57872954]
[1617291498999,0.09406894,1939.5,1938.7,2.57872954]
[1617291499202,0.39,1939.4,1938.9,5.01]
[1617291499598,7.73892,1939.2,1938.8,6.4865]
[1617291499897,8.12892,1939.2,1938.8,6.0965]
[1617291500499,7.73892,1939.2,1938.8,6.4865]
[1617291500822,0.39,1939.4,1938.8,7.2207]
[1617291501022,0.39,1939.4,1938.9,2.57872954]
[1617291501222,0.39,1939.4,1939.1,5.01]
[1617291501829,0.39,1939.4,1939.0,6.775]
[1617291502025,0.39,1939.4,1939.1,5.01]
[1617291502324,8.12789,1939.4,1939.1,5.01]
[1617291502724,8.12789,1939.4,1939.0,5.01]
[1617291502927,8.12789,1939.4,1939.1,5.01]
[1617291503548,0.4,1939.2,1939.0,5.01]
[1617291503848,8.12834,1939.3,1939.0,5.01]
[1617291504750,7.73834,1939.3,1939.0,5.01]
[1617291505153,7.73834,1939.3,1939.2,7.75]
[1617291505453,0.47406894,1939.7,1939.2,12.36]
[1617291505649,0.47406894,1939.7,1939.2,7.35]
[1617291506104,0.39,1939.6,1939.2,7.35]
[1617291507102,7.73759,1939.5,1939.2,7.35]
[1617291508807,7.73759,1939.5,1939.4,8.6]
[1617291509004,1.0,1939.9,1939.4,8.6]
[1617291510005,0.41,1940.0,1939.4,8.6]
[1617291510207,7.73635,1939.8,1939.4,8.6]
[1617291511425,8.14635,1939.8,1939.5,0.14080034]
[1617291512021,7.73635,1939.8,1939.5,0.14080034]
[1617291513020,3.11,1939.7,1939.5,0.14080034]
[1617291513325,0.41,1939.6,1939.3,5.01]
[1617291513520,0.41,1939.7,1939.2,0.4]
[1617291513722,0.09406894,1939.8,1939.4,0.41]
[1617291513952,7.73773,1939.5,1939.2,0.4]
[1617291514251,7.73773,1939.5,1939.4,0.38]
[1617291514648,7.73773,1939.5,1939.2,0.38]
[1617291514850,7.73773,1939.5,1938.9,8.87863]
[1617291515048,6.73773,1939.5,1939.1,0.41]
[1617291515249,7.13773,1939.5,1939.1,5.01]
[1617291515449,7.13773,1939.5,1939.1,5.4]
[1617291515450,6.73773,1939.5,1939.1,5.4]
[1617291516876,6.73773,1939.5,1939.3,0.39]
[1617291517778,6.73773,1939.5,1939.1,5.01]
[1617291518078,6.73773,1939.5,1939.1,5.39]
[1617291518680,6.73773,1939.5,1939.2,1.2]
[1617291518881,8.13654,1939.8,1939.2,4.26827]
[1617291519085,10.31567,1939.9,1939.4,5.01]
[1617291519304,10.31567,1939.9,1939.4,5.39]
[1617291519803,7.73692,1939.7,1939.4,5.39]
[1617291520003,6.73692,1939.7,1939.4,5.39]
[1617291520807,10.31567,1939.9,1939.4,5.39]
[1617291521114,8.13622,1940.0,1939.4,5.39]
[1617291521613,8.13622,1940.0,1939.4,5.54898007]
[1617291523152,7.73676,1939.7,1939.4,5.54898007]
[1617291523855,7.73676,1939.7,1939.4,5.16898007]
[1617291524350,8.12676,1939.7,1939.4,5.06898007]
[1617291525052,6.73676,1939.7,1939.4,5.06898007]
[1617291525654,6.73676,1939.7,1939.4,0.15898007]
[1617291527572,6.73676,1939.7,1939.5,5.01]
[1617291528880,10.69567,1939.9,1939.5,5.01]
[1617291529176,7.73628,1939.7,1939.5,5.01]
[1617291529999,6.73628,1939.7,1939.5,5.01]
[1617291531506,10.69567,1939.9,1939.5,5.01]
[1617291531704,0.38,1939.9,1939.5,5.01]
[1617291532726,8.11557,1939.9,1939.5,5.01]
[1617291532925,0.38,1939.6,1939.5,5.01]
[1617291533125,0.09406894,1939.9,1939.4,5.16898007]
[1617291533323,0.39,1939.7,1939.4,0.15898007]
[1617291534028,7.73729,1939.6,1939.4,0.15898007]
[1617291534224,2.76,1939.5,1939.3,5.29]
[1617291534627,10.70638,1939.7,1939.3,5.29]
[1617291535050,7.73734,1939.5,1939.3,5.29]
[1617291535350,7.73734,1939.5,1939.3,5.67]
[1617291535757,7.73734,1939.5,1939.4,6.06]
[1617291535951,7.73734,1939.5,1939.4,5.65]
[1617291538801,7.73734,1939.5,1939.4,5.01]
[1617291540001,6.73734,1939.5,1939.4,5.01]
[1617291540606,6.71234,1939.5,1939.4,5.01]
[1617291540801,6.71234,1939.5,1939.3,0.28]
[1617291541204,7.1702713,1939.5,1939.3,0.28]
[1617291541402,7.1702713,1939.5,1938.9,7.72494519]
[1617291541706,0.41,1939.4,1938.9,5.17881395]
[1617291541907,0.64406894,1939.4,1938.6,15.3293]
[1617291542105,0.64406894,1939.4,1938.1,11.31952]
[1617291542106,7.74046,1939.0,1938.1,11.31952]
[1617291542305,2.76,1938.9,1938.4,0.294]
[1617291542504,7.7325,1938.9,1938.4,0.694]
[1617291543130,7.74054,1938.7,1938.4,0.694]
[1617291543530,7.74054,1938.7,1938.6,5.01]
[1617291543731,7.74054,1938.7,1938.5,0.41]
[1617291543931,7.7325,1938.9,1938.5,0.41]
[1617291544130,7.7325,1938.9,1938.4,7.85013124]
[1617291544334,0.4579313,1938.6,1938.4,7.85013124]
[1617291544932,1.0800313,1939.0,1938.4,8.24013124]